{"text_format":"1","workbook":"xlsx","n_sheets":6,"sheets":["بيانات المنشأة","بيانات المؤمن عليهم","طباعة","نموذج 1","خلفية النموذج","تعليمات"],"not_rendered":{"charts":0,"images":1,"macros":1,"external_links":0,"defined_names":0,"comments":0,"pivot_tables":0},"unopened":[],"bounds":{"document_bytes":16777216,"sheet_cells":100000,"rows_first":2000,"rows_last":500,"rows_between":2000,"halvings":0,"cell_chars":16384,"cell_head_chars":4096},"cells_cut":0,"cells_raw":0,"read":"whole","date_system":"1900"}

{"sheet":"بيانات المنشأة","index":0,"n_rows":11,"n_cols":25,"rows_kept":11,"cut":false,"hidden":false,"merged":[[0,0,0,1]]}
["بيانات المنشأة"]
["مكتب تأمينات","مكتب"]
["مقدم الطلب","مقدم الطلب",null,null,null,null,null,null,null,null,null,null,null,null,null,null,null,null,null,null,null,null,null,null,"اكتب هذه البيانات لمره واحده"]
["الرقم لتأمينى",12345678,null,null,null,null,null,null,null,null,null,null,null,null,null,null,null,null,null,null,null,null,"اكتب هذه البيانات لمره واحده"]
["صفة مقدم الطلب"]
["رقم التليفون","0101234568110"]
["الرقم القومى",12345678912345]
["رقم المنشأة",12345678]
["اسم المنشأة","AliaTeck"]
["العنوان","العنوان"]
[null,null,null,null,null,null,null,null,null,null,null,null,null,null,null,null,null,null,null,null,null,"اكتب هذه البيانات لمره واحده"]

{"sheet":"بيانات المؤمن عليهم","index":1,"n_rows":2,"n_cols":18,"rows_kept":2,"cut":false,"hidden":false,"merged":[]}
["الكود","الاسـم","الرقم التامينى","الرقم القومى","المؤهل","الوظيفة","تاريــخ بــدء الإشـتراك ","اجر الاشتراك","الاجرالشامل","الجنسية","عقار رقم ","شارع   "," قرية ","قسم / مركز ","محافظة  ","رقم التليفون","كـود الاشــتراك","نوع المــدة"]
[102,"سيد على على",12345678,12345678912345,null,"موظف","2026-01-01",16700,12345,"مصري"]

{"sheet":"طباعة","index":2,"n_rows":0,"n_cols":0,"rows_kept":0,"cut":false,"hidden":false,"merged":[]}

{"sheet":"نموذج 1","index":3,"n_rows":50,"n_cols":35,"rows_kept":50,"cut":false,"hidden":false,"merged":[[2,4,2,11],[29,13,29,14],[16,25,16,29],[4,22,4,29],[22,7,22,11],[22,16,22,23],[4,11,4,12],[4,19,4,20],[5,19,5,20],[14,22,14,33],[18,5,18,10],[48,1,48,5],[20,9,20,10],[20,12,20,13],[20,15,20,18],[24,1,25,6],[24,8,24,13],[24,18,25,21],[43,6,43,15],[44,5,44,16],[37,21,37,29],[37,4,37,5],[37,9,37,18],[39,5,39,12],[39,16,39,29],[34,5,34,17],[24,23,24,28]]}
[102,"الهيئة القومية للتأمين الاجتماعى"]
[null,null,null,null,null,null,null,null,null,null,null,null,null,null,null,null,null,null,null,null,null,null,null,null,null,null,null,null,null,"نموذج رقم ( 1 )",null,null,null,null,102]
[null,"مكتب  :",null,null,{"$f":"'بيانات المنشأة'!$B$2","v":"مكتب"}]
[null,null,null,null,null,null,null,null,null,null,null,null,null,null,null,null,null,"طلــــــــب اشتراك مــؤمــــن عليـــــــــه"]
[null,"الفئة",null,1,"عاملين لدى الغير",null,null,null,null,null,null,"√",null,null,null,null,null,null,null,2,null,null,"أصحاب أعمال لهم منشآت"]
[null,null,null,3,"العاملين بالمخابز"]
[]
[]
[null,null,null,null,null,"مقدم الطلب :",{"$f":"IF('بيانات المنشأة'!$B$3=\"\",\"\",('بيانات المنشأة'!$B$3))","v":"مقدم الطلب"},null,null,null,null,null,null,null,null,null,null,null,"صفة مقدم الطلب :",null,null,null,null,null,{"$f":"IF('بيانات المنشأة'!$B$5=\"\",\"\",('بيانات المنشأة'!$B$5))","v":""}]
[null,"الرقم التأمينى ",null,null,null,null,{"$f":"IF(LEN('بيانات المنشأة'!B4)>=1,LEFT(RIGHT('بيانات المنشأة'!B4,1)),\"\")","v":"8"},{"$f":"IF(LEN('بيانات المنشأة'!B4)>=2,LEFT(RIGHT('بيانات المنشأة'!B4,2)),\"\")","v":"7"},{"$f":"IF(LEN('بيانات المنشأة'!B4)>=3,LEFT(RIGHT('بيانات المنشأة'!B4,3)),\"\")","v":"6"},{"$f":"IF(LEN('بيانات المنشأة'!B4)>=4,LEFT(RIGHT('بيانات المنشأة'!B4,4)),\"\")","v":"5"},{"$f":"IF(LEN('بيانات المنشأة'!B4)>=5,LEFT(RIGHT('بيانات المنشأة'!B4,5)),\"\")","v":"4"},{"$f":"IF(LEN('بيانات المنشأة'!B4)>=6,LEFT(RIGHT('بيانات المنشأة'!B4,6)),\"\")","v":"3"},{"$f":"IF(LEN('بيانات المنشأة'!B4)>=7,LEFT(RIGHT('بيانات المنشأة'!B4,7)),\"\")","v":"2"},{"$f":"IF(LEN('بيانات المنشأة'!B4)>=8,LEFT(RIGHT('بيانات المنشأة'!B4,8)),\"\")","v":"1"},{"$f":"IF(LEN('بيانات المنشأة'!B4)>=9,LEFT(RIGHT('بيانات المنشأة'!B4,9)),\"\")","v":""},null,null,null,"رقم التليفون :",null,null,null,{"$f":"IF('بيانات المنشأة'!$B$6=\"\",\"\",'بيانات المنشأة'!$B$6)","v":"0101234568110"}]
[]
[null,"الرقم قومى",null,null,null,null,{"$f":"IF(LEN('بيانات المنشأة'!B7)>=1,LEFT(RIGHT('بيانات المنشأة'!B7,1)),\"\")","v":"5"},{"$f":"IF(LEN('بيانات المنشأة'!B7)>=2,LEFT(RIGHT('بيانات المنشأة'!B7,2)),\"\")","v":"4"},{"$f":"IF(LEN('بيانات المنشأة'!B7)>=3,LEFT(RIGHT('بيانات المنشأة'!B7,3)),\"\")","v":"3"},{"$f":"IF(LEN('بيانات المنشأة'!B7)>=4,LEFT(RIGHT('بيانات المنشأة'!B7,4)),\"\")","v":"2"},{"$f":"IF(LEN('بيانات المنشأة'!B7)>=5,LEFT(RIGHT('بيانات المنشأة'!B7,5)),\"\")","v":"1"},{"$f":"IF(LEN('بيانات المنشأة'!B7)>=6,LEFT(RIGHT('بيانات المنشأة'!B7,6)),\"\")","v":"9"},{"$f":"IF(LEN('بيانات المنشأة'!B7)>=7,LEFT(RIGHT('بيانات المنشأة'!B7,7)),\"\")","v":"8"},{"$f":"IF(LEN('بيانات المنشأة'!B7)>=8,LEFT(RIGHT('بيانات المنشأة'!B7,8)),\"\")","v":"7"},{"$f":"IF(LEN('بيانات المنشأة'!B7)>=9,LEFT(RIGHT('بيانات المنشأة'!B7,9)),\"\")","v":"6"},{"$f":"IF(LEN('بيانات المنشأة'!B7)>=10,LEFT(RIGHT('بيانات المنشأة'!B7,10)),\"\")","v":"5"},{"$f":"IF(LEN('بيانات المنشأة'!B7)>=11,LEFT(RIGHT('بيانات المنشأة'!B7,11)),\"\")","v":"4"},{"$f":"IF(LEN('بيانات المنشأة'!B7)>=12,LEFT(RIGHT('بيانات المنشأة'!B7,12)),\"\")","v":"3"},{"$f":"IF(LEN('بيانات المنشأة'!B7)>=13,LEFT(RIGHT('بيانات المنشأة'!B7,13)),\"\")","v":"2"},{"$f":"IF(LEN('بيانات المنشأة'!B7)>=14,LEFT(RIGHT('بيانات المنشأة'!B7,14)),\"\")","v":"1"}]
[]
[]
[null,"الرقم التأمينى ",null,null,null,null,{"$f":"IFERROR(IF(MID(VLOOKUP($A$1,'بيانات المؤمن عليهم'!$A:$C,3,0),LEN(VLOOKUP($A$1,'بيانات المؤمن عليهم'!$A:$C,3,0))-1,1)=\"\",\"\",MID(VLOOKUP($A$1,'بيانات المؤمن عليهم'!$A:$C,3,0),LEN(VLOOKUP($A$1,'بيانات المؤمن عليهم'!$A:$C,3,0)),1)),\"\")","v":"8"},{"$f":"IFERROR(IF(MID(VLOOKUP($A$1,'بيانات المؤمن عليهم'!$A:$C,3,0),LEN(VLOOKUP($A$1,'بيانات المؤمن عليهم'!$A:$C,3,0))-1,1)=\"\",\"\",MID(VLOOKUP($A$1,'بيانات المؤمن عليهم'!$A:$C,3,0),LEN(VLOOKUP($A$1,'بيانات المؤمن عليهم'!$A:$C,3,0))-1,1)),\"\")","v":"7"},{"$f":"IFERROR(IF(MID(VLOOKUP($A$1,'بيانات المؤمن عليهم'!$A:$C,3,0),LEN(VLOOKUP($A$1,'بيانات المؤمن عليهم'!$A:$C,3,0))-2,1)=\"\",\"\",MID(VLOOKUP($A$1,'بيانات المؤمن عليهم'!$A:$C,3,0),LEN(VLOOKUP($A$1,'بيانات المؤمن عليهم'!$A:$C,3,0))-2,1)),\"\")","v":"6"},{"$f":"IFERROR(IF(MID(VLOOKUP($A$1,'بيانات المؤمن عليهم'!$A:$C,3,0),LEN(VLOOKUP($A$1,'بيانات المؤمن عليهم'!$A:$C,3,0))-3,1)=\"\",\"\",MID(VLOOKUP($A$1,'بيانات المؤمن عليهم'!$A:$C,3,0),LEN(VLOOKUP($A$1,'بيانات المؤمن عليهم'!$A:$C,3,0))-3,1)),\"\")","v":"5"},{"$f":"IFERROR(IF(MID(VLOOKUP($A$1,'بيانات المؤمن عليهم'!$A:$C,3,0),LEN(VLOOKUP($A$1,'بيانات المؤمن عليهم'!$A:$C,3,0))-4,1)=\"\",\"\",MID(VLOOKUP($A$1,'بيانات المؤمن عليهم'!$A:$C,3,0),LEN(VLOOKUP($A$1,'بيانات المؤمن عليهم'!$A:$C,3,0))-4,1)),\"\")","v":"4"},{"$f":"IFERROR(IF(MID(VLOOKUP($A$1,'بيانات المؤمن عليهم'!$A:$C,3,0),LEN(VLOOKUP($A$1,'بيانات المؤمن عليهم'!$A:$C,3,0))-5,1)=\"\",\"\",MID(VLOOKUP($A$1,'بيانات المؤمن عليهم'!$A:$C,3,0),LEN(VLOOKUP($A$1,'بيانات المؤمن عليهم'!$A:$C,3,0))-5,1)),\"\")","v":"3"},{"$f":"IFERROR(IF(MID(VLOOKUP($A$1,'بيانات المؤمن عليهم'!$A:$C,3,0),LEN(VLOOKUP($A$1,'بيانات المؤمن عليهم'!$A:$C,3,0))-6,1)=\"\",\"\",MID(VLOOKUP($A$1,'بيانات المؤمن عليهم'!$A:$C,3,0),LEN(VLOOKUP($A$1,'بيانات المؤمن عليهم'!$A:$C,3,0))-6,1)),\"\")","v":"2"},{"$f":"IFERROR(IF(MID(VLOOKUP($A$1,'بيانات المؤمن عليهم'!$A:$C,3,0),LEN(VLOOKUP($A$1,'بيانات المؤمن عليهم'!$A:$C,3,0))-7,1)=\"\",\"\",MID(VLOOKUP($A$1,'بيانات المؤمن عليهم'!$A:$C,3,0),LEN(VLOOKUP($A$1,'بيانات المؤمن عليهم'!$A:$C,3,0))-7,1)),\"\")","v":"1"},{"$f":"IFERROR(IF(MID(VLOOKUP($A$1,'بيانات المؤمن عليهم'!$A:$C,3,0),LEN(VLOOKUP($A$1,'بيانات المؤمن عليهم'!$A:$C,3,0))-8,1)=\"\",\"\",MID(VLOOKUP($A$1,'بيانات المؤمن عليهم'!$A:$C,3,0),LEN(VLOOKUP($A$1,'بيانات المؤمن عليهم'!$A:$C,3,0))-8,1)),\"\")","v":""},null,null,null,null,null,null,"اسم المؤمن عليه : ",{"$f":"IFERROR(IF(VLOOKUP($A$1,'بيانات المؤمن عليهم'!A:K,2,0)=0,\"\",VLOOKUP($A$1,'بيانات المؤمن عليهم'!A:K,2,0)),\"\")","v":"سيد على على"}]
[null,null,null,null,null,null,{"$f":"IF(VLOOKUP($A$1, 'بيانات المؤمن عليهم'!A:C, 3, FALSE())=\"\",\"\",MID(VLOOKUP($A$1, 'بيانات المؤمن عليهم'!A:C, 3, FALSE()),1,1))","v":"1"}]
[null,"الرقم القومى",null,null,null,null,{"$f":"IFERROR(IF(MID(VLOOKUP($A$1,'بيانات المؤمن عليهم'!$A:$D,4,0),LEN(VLOOKUP($A$1,'بيانات المؤمن عليهم'!$A:$D,4,0))-0,1)=\"\",\"\",MID(VLOOKUP($A$1,'بيانات المؤمن عليهم'!$A:$D,4,0),LEN(VLOOKUP($A$1,'بيانات المؤمن عليهم'!$A:$D,4,0))-0,1)),\"\")","v":"5"},{"$f":"IFERROR(IF(MID(VLOOKUP($A$1,'بيانات المؤمن عليهم'!$A:$D,4,0),LEN(VLOOKUP($A$1,'بيانات المؤمن عليهم'!$A:$D,4,0))-1,1)=\"\",\"\",MID(VLOOKUP($A$1,'بيانات المؤمن عليهم'!$A:$D,4,0),LEN(VLOOKUP($A$1,'بيانات المؤمن عليهم'!$A:$D,4,0))-1,1)),\"\")","v":"4"},{"$f":"IFERROR(IF(MID(VLOOKUP($A$1,'بيانات المؤمن عليهم'!$A:$D,4,0),LEN(VLOOKUP($A$1,'بيانات المؤمن عليهم'!$A:$D,4,0))-2,1)=\"\",\"\",MID(VLOOKUP($A$1,'بيانات المؤمن عليهم'!$A:$D,4,0),LEN(VLOOKUP($A$1,'بيانات المؤمن عليهم'!$A:$D,4,0))-2,1)),\"\")","v":"3"},{"$f":"IFERROR(IF(MID(VLOOKUP($A$1,'بيانات المؤمن عليهم'!$A:$D,4,0),LEN(VLOOKUP($A$1,'بيانات المؤمن عليهم'!$A:$D,4,0))-3,1)=\"\",\"\",MID(VLOOKUP($A$1,'بيانات المؤمن عليهم'!$A:$D,4,0),LEN(VLOOKUP($A$1,'بيانات المؤمن عليهم'!$A:$D,4,0))-3,1)),\"\")","v":"2"},{"$f":"IFERROR(IF(MID(VLOOKUP($A$1,'بيانات المؤمن عليهم'!$A:$D,4,0),LEN(VLOOKUP($A$1,'بيانات المؤمن عليهم'!$A:$D,4,0))-4,1)=\"\",\"\",MID(VLOOKUP($A$1,'بيانات المؤمن عليهم'!$A:$D,4,0),LEN(VLOOKUP($A$1,'بيانات المؤمن عليهم'!$A:$D,4,0))-4,1)),\"\")","v":"1"},{"$f":"IFERROR(IF(MID(VLOOKUP($A$1,'بيانات المؤمن عليهم'!$A:$D,4,0),LEN(VLOOKUP($A$1,'بيانات المؤمن عليهم'!$A:$D,4,0))-5,1)=\"\",\"\",MID(VLOOKUP($A$1,'بيانات المؤمن عليهم'!$A:$D,4,0),LEN(VLOOKUP($A$1,'بيانات المؤمن عليهم'!$A:$D,4,0))-5,1)),\"\")","v":"9"},{"$f":"IFERROR(IF(MID(VLOOKUP($A$1,'بيانات المؤمن عليهم'!$A:$D,4,0),LEN(VLOOKUP($A$1,'بيانات المؤمن عليهم'!$A:$D,4,0))-6,1)=\"\",\"\",MID(VLOOKUP($A$1,'بيانات المؤمن عليهم'!$A:$D,4,0),LEN(VLOOKUP($A$1,'بيانات المؤمن عليهم'!$A:$D,4,0))-6,1)),\"\")","v":"8"},{"$f":"IFERROR(IF(MID(VLOOKUP($A$1,'بيانات المؤمن عليهم'!$A:$D,4,0),LEN(VLOOKUP($A$1,'بيانات المؤمن عليهم'!$A:$D,4,0))-7,1)=\"\",\"\",MID(VLOOKUP($A$1,'بيانات المؤمن عليهم'!$A:$D,4,0),LEN(VLOOKUP($A$1,'بيانات المؤمن عليهم'!$A:$D,4,0))-7,1)),\"\")","v":"7"},{"$f":"IFERROR(IF(MID(VLOOKUP($A$1,'بيانات المؤمن عليهم'!$A:$D,4,0),LEN(VLOOKUP($A$1,'بيانات المؤمن عليهم'!$A:$D,4,0))-8,1)=\"\",\"\",MID(VLOOKUP($A$1,'بيانات المؤمن عليهم'!$A:$D,4,0),LEN(VLOOKUP($A$1,'بيانات المؤمن عليهم'!$A:$D,4,0))-8,1)),\"\")","v":"6"},{"$f":"IFERROR(IF(MID(VLOOKUP($A$1,'بيانات المؤمن عليهم'!$A:$D,4,0),LEN(VLOOKUP($A$1,'بيانات المؤمن عليهم'!$A:$D,4,0))-9,1)=\"\",\"\",MID(VLOOKUP($A$1,'بيانات المؤمن عليهم'!$A:$D,4,0),LEN(VLOOKUP($A$1,'بيانات المؤمن عليهم'!$A:$D,4,0))-9,1)),\"\")","v":"5"},{"$f":"IFERROR(IF(MID(VLOOKUP($A$1,'بيانات المؤمن عليهم'!$A:$D,4,0),LEN(VLOOKUP($A$1,'بيانات المؤمن عليهم'!$A:$D,4,0))-10,1)=\"\",\"\",MID(VLOOKUP($A$1,'بيانات المؤمن عليهم'!$A:$D,4,0),LEN(VLOOKUP($A$1,'بيانات المؤمن عليهم'!$A:$D,4,0))-10,1)),\"\")","v":"4"},{"$f":"IFERROR(IF(MID(VLOOKUP($A$1,'بيانات المؤمن عليهم'!$A:$D,4,0),LEN(VLOOKUP($A$1,'بيانات المؤمن عليهم'!$A:$D,4,0))-11,1)=\"\",\"\",MID(VLOOKUP($A$1,'بيانات المؤمن عليهم'!$A:$D,4,0),LEN(VLOOKUP($A$1,'بيانات المؤمن عليهم'!$A:$D,4,0))-11,1)),\"\")","v":"3"},{"$f":"IFERROR(IF(MID(VLOOKUP($A$1,'بيانات المؤمن عليهم'!$A:$D,4,0),LEN(VLOOKUP($A$1,'بيانات المؤمن عليهم'!$A:$D,4,0))-12,1)=\"\",\"\",MID(VLOOKUP($A$1,'بيانات المؤمن عليهم'!$A:$D,4,0),LEN(VLOOKUP($A$1,'بيانات المؤمن عليهم'!$A:$D,4,0))-12,1)),\"\")","v":"2"},{"$f":"IFERROR(IF(MID(VLOOKUP($A$1,'بيانات المؤمن عليهم'!$A:$D,4,0),LEN(VLOOKUP($A$1,'بيانات المؤمن عليهم'!$A:$D,4,0))-13,1)=\"\",\"\",MID(VLOOKUP($A$1,'بيانات المؤمن عليهم'!$A:$D,4,0),LEN(VLOOKUP($A$1,'بيانات المؤمن عليهم'!$A:$D,4,0))-13,1)),\"\")","v":"1"},null,null,"الجنسية : ",null,null,{"$f":"'بيانات المؤمن عليهم'!$J$2","v":"مصري"}]
[]
[null,"المؤهل : ",null,null,null,{"$f":"IFERROR(IF(VLOOKUP($A$1,'بيانات المؤمن عليهم'!A:K,5,0)=0,\"\",VLOOKUP($A$1,'بيانات المؤمن عليهم'!A:K,5,0)),\"\")","v":""},null,null,null,null,null,null,null,null,null,"المهـنة :",null,null,{"$f":"IFERROR(IF(VLOOKUP($A$1,'بيانات المؤمن عليهم'!A:Q,6,0)=0,\"\",VLOOKUP($A$1,'بيانات المؤمن عليهم'!A:Q,6,0)),\"\")","v":"موظف"}]
[]
[null,"تاريــخ بــدء الإشــــتراك :",null,null,null,null,null,null,null,{"$f":"IFERROR(IF(VLOOKUP($A$1,'بيانات المؤمن عليهم'!A:K,7,0)=0,\"\",VLOOKUP($A$1,'بيانات المؤمن عليهم'!A:K,7,0)),\"\")","v":"2026-01-01"},null,null,{"$f":"IFERROR(IF(VLOOKUP($A$1,'بيانات المؤمن عليهم'!A:K,7,0)=0,\"\",VLOOKUP($A$1,'بيانات المؤمن عليهم'!A:K,7,0)),\"\")","v":"2026-01-01"},null,null,{"$f":"IFERROR(IF(VLOOKUP($A$1,'بيانات المؤمن عليهم'!A:K,7,0)=0,\"\",VLOOKUP($A$1,'بيانات المؤمن عليهم'!A:K,7,0)),\"\")","v":"2026-01-01"},null,null,null,null,"القطــاع :",null,null,3]
[]
[null,null,"كـود الاشــتراك: ",null,null,null,null,{"$f":"IFERROR(IF(VLOOKUP($A$1,'بيانات المؤمن عليهم'!A:Q,17,0)=0,\"\",VLOOKUP($A$1,'بيانات المؤمن عليهم'!A:Q,17,0)),\"\")","v":""},null,null,null,null,null,"نوع المــدة :",null,null,{"$f":"IFERROR(IF(VLOOKUP($A$1,'بيانات المؤمن عليهم'!A:R,18,0)=0,\"\",VLOOKUP($A$1,'بيانات المؤمن عليهم'!A:R,18,0)),\"\")","v":""}]
[]
[null,"أجر / دخل الإشتراك :",null,null,null,null,null,null,"جنيــــــــــــــــــــــه",null,null,null,null,null,null,null,null,null,"الأجر الشامل",null,null,null,null,"جنيــــــــــــــــــــــه"]
[null,null,null,null,null,null,null,null,{"$f":"RIGHT(VLOOKUP($A$1,'بيانات المؤمن عليهم'!A:K,8,0),1)","v":"0"},{"$f":"LEFT(RIGHT(VLOOKUP($A$1,'بيانات المؤمن عليهم'!A:K,8,0),2),1)","v":"0"},{"$f":"LEFT(RIGHT(VLOOKUP($A$1,'بيانات المؤمن عليهم'!A:K,8,0),3),1)","v":"7"},{"$f":"IF(LEN(VLOOKUP($A$1,'بيانات المؤمن عليهم'!A:K,8,0))>=4,LEFT((RIGHT(VLOOKUP($A$1,'بيانات المؤمن عليهم'!A:K,8,0),4))),0)","v":"6"},{"$f":"IF(LEN(VLOOKUP($A$1,'بيانات المؤمن عليهم'!A:K,8,0))=5,LEFT((RIGHT(VLOOKUP($A$1,'بيانات المؤمن عليهم'!A:K,8,0),5))),0)","v":"1"},{"$f":"IF(LEN(VLOOKUP($A$1,'بيانات المؤمن عليهم'!$A:$K,6,0))=8,LEFT((RIGHT(VLOOKUP($A$1,'بيانات المؤمن عليهم'!$A:$K,6,0),8))),0)","v":0},null,null,null,null,null,null,null,null,null,{"$f":"RIGHT(VLOOKUP($A$1,'بيانات المؤمن عليهم'!A:K,9,0),1)","v":"5"},{"$f":"LEFT(RIGHT(VLOOKUP($A$1,'بيانات المؤمن عليهم'!A:K,9,0),2),1)","v":"4"},{"$f":"LEFT(RIGHT(VLOOKUP($A$1,'بيانات المؤمن عليهم'!A:K,9,0),3),1)","v":"3"},{"$f":"IF(LEN(VLOOKUP($A$1,'بيانات المؤمن عليهم'!A:K,9,0))>=4,LEFT((RIGHT(VLOOKUP($A$1,'بيانات المؤمن عليهم'!A:K,9,0),4))),0)","v":"2"},{"$f":"IF(LEN(VLOOKUP($A$1,'بيانات المؤمن عليهم'!A:K,9,0))>=5,LEFT((RIGHT(VLOOKUP($A$1,'بيانات المؤمن عليهم'!A:K,9,0),5))),0)","v":"1"},{"$f":"IF(LEN(VLOOKUP($A$1,'بيانات المؤمن عليهم'!$A:$K,9,0))=6,LEFT((RIGHT(VLOOKUP($A$1,'بيانات المؤمن عليهم'!$A:$K,9,0),6))),0)","v":0}]
[]
[null,"بيانات العجز إن وجدت : تاريخ بداية العجز :",null,null,null,null,null,null,null,null,null,null,null,null,null,null,null,null,null,null,null,null,null,null,null,"نسبة العجز :",null,null,null,null,null,"%"]
[]
[null,"استيفاء الكشف الطبي الإبتدائى : نعم ",null,null,null,null,null,null,null,null,null,null,null,"√",null,null,null,"لا"]
[]
[]
[null,"نوع المنشأة :",null,null,null,"نمطى",null,"√",null,"سيارة",null,null,null,"مركب صيد",null,null,null,null,null,"مخابز بلدية"]
[]
[null,"اسم المنشأة : ",null,null,null,{"$f":"IF('بيانات المنشأة'!$B$9=\"\",\"\",('بيانات المنشأة'!$B$9))","v":"AliaTeck"},null,null,null,null,null,null,null,null,null,null,null,null,null,null,null,"رقم المنشأة :",null,null,{"$f":"IF(LEN('بيانات المنشأة'!B8)>=1,LEFT(RIGHT('بيانات المنشأة'!B8,1)),\"\")","v":"8"},{"$f":"IF(LEN('بيانات المنشأة'!B8)>=2,LEFT(RIGHT('بيانات المنشأة'!B8,2)),\"\")","v":"7"},{"$f":"IF(LEN('بيانات المنشأة'!B8)>=3,LEFT(RIGHT('بيانات المنشأة'!B8,3)),\"\")","v":"6"},{"$f":"IF(LEN('بيانات المنشأة'!B8)>=4,LEFT(RIGHT('بيانات المنشأة'!B8,4)),\"\")","v":"5"},{"$f":"IF(LEN('بيانات المنشأة'!B8)>=5,LEFT(RIGHT('بيانات المنشأة'!B8,5)),\"\")","v":"4"},{"$f":"IF(LEN('بيانات المنشأة'!B8)>=6,LEFT(RIGHT('بيانات المنشأة'!B8,6)),\"\")","v":"3"},{"$f":"IF(LEN('بيانات المنشأة'!B8)>=7,LEFT(RIGHT('بيانات المنشأة'!B8,7)),\"\")","v":"2"},{"$f":"IF(LEN('بيانات المنشأة'!B8)>=8,LEFT(RIGHT('بيانات المنشأة'!B8,8)),\"\")","v":"1"},null,null,{"$f":"IF(LEN('بيانات المنشأة'!B8)>=9,LEFT(RIGHT('بيانات المنشأة'!B8,9)),\"\")","v":""}]
[]
[]
[null,"عقار رقم :",null,null,{"$f":"IFERROR(IF(VLOOKUP($A$1,'بيانات المؤمن عليهم'!A:Q,11,0)=0,\"\",VLOOKUP($A$1,'بيانات المؤمن عليهم'!A:Q,11,0)),\"\")","v":""},null,null,null,"شارع  : ",{"$f":"IFERROR(IF(VLOOKUP($A$1,'بيانات المؤمن عليهم'!A:Q,12,0)=0,\"\",VLOOKUP($A$1,'بيانات المؤمن عليهم'!A:Q,12,0)),\"\")","v":""},null,null,null,null,null,null,null,null,null," قرية :",null,{"$f":"IFERROR(IF(VLOOKUP($A$1,'بيانات المؤمن عليهم'!A:Q,13,0)=0,\"\",VLOOKUP($A$1,'بيانات المؤمن عليهم'!A:Q,13,0)),\"\")","v":""}]
[]
[null,"قسم / مركز :",null,null,null,{"$f":"IFERROR(IF(VLOOKUP($A$1,'بيانات المؤمن عليهم'!A:Q,14,0)=0,\"\",VLOOKUP($A$1,'بيانات المؤمن عليهم'!A:Q,14,0)),\"\")","v":""},null,null,null,null,null,null,null,"محافظة :",null,null,{"$f":"IFERROR(IF(VLOOKUP($A$1,'بيانات المؤمن عليهم'!A:Q,15,0)=0,\"\",VLOOKUP($A$1,'بيانات المؤمن عليهم'!A:Q,15,0)),\"\")","v":""}]
[]
[]
[null,"توقيع المؤمن عليه :",null,null,null,null,null,null,null,null,null,null,null,null,null,null,null,null,null,"توقيع صاحب العمل / المدير المسئول"]
[null,"رقم التليفــون : ",null,null,null,null,{"$f":"VLOOKUP($A$1,'بيانات المؤمن عليهم'!A:P,16,0)","v":0}]
[null,"تحـــريراً في : ",null,null,null,{"$f":"TODAY()","v":"2026-03-08"}]
[]
[]
[null,"توقيع الموظف المختص بالمطابقة : ",null,null,null,null,null,null,null,null,null,null,null,null,null,null,null,null,null,null,"تاريخ المطابقة :       /        /"]
[]
[null,"ملحوظة: على صاحب العمل والعامل الإطلاع على التوجيهات الموضحة خلف النموذج مع التوقيع على الإقرار.    (انظر خلفه)"]

{"sheet":"خلفية النموذج","index":4,"n_rows":23,"n_cols":7,"rows_kept":23,"cut":false,"hidden":false,"merged":[[19,1,19,7],[0,0,0,7],[5,1,5,7],[6,1,6,7],[8,1,8,7],[10,6,10,7],[10,2,10,4],[1,1,1,7],[2,1,2,7],[7,1,7,7],[13,1,13,7],[18,5,18,7],[4,1,4,7],[18,2,18,4],[11,2,11,7]]}
["إرشـــــادات"]
["1ـ","  على صاحب العمل  أن يرسل هذا النموذج  مع طلب اشتراكه في الهيئة لأول مرة وخلال أسبوعين على الأكثر من تاريخ التحاق أي عامل جديد بالعمل لديه سواء كان التحاقا نهائياً أو تحت الاختبار . "]
[2,"التوقيع على هذا النموذج بما يفيد الاطلاع والموافقة على جميع البيانات الواردة به ولا يجوز لمـــــن وقَّع عليها أن يعارض في تلك البيانات أمام الهيئة وله أن يلجأ إلى مكتب علاقات العمل المختص أو القضاء."]
[]
[3,"يستخدم هذا النموذج كطلب اشتراك في تأمين إصابات العمل فقط بالنسبة للفئات التالية :-"]
[null,"(‌أ)      من تجاوز سن الشيخوخة وأوقف انتفاعه بتأمين الشيخوخة والعجز والوفاة."]
[null,"(‌ب) العاملون الذين يخضعون لأحكام قانون العمل ممن تقل أعمارهم عن 18 سنة ."]
[null,"(‌ج)  العاملون المتدرجون والتلاميذ الصناعيون والطلاب المشتغلون في مشروعات التشغيل الصيفـي و الخدمة العامة ، ويشترط اعتماد النموذج المحرر لهم من المدير المسئول بالهيئة التي تشرف على التلمذة الصناعية ، والتدريب مع ختمها بخاتم هذه الجهة مع إرفاق نسخة من عقد عمل المتدرب أو المستند المثبت لنوع العمل في جميع هذه الحالات."]
[null,"(‌د)    يقتصر استيفاء الأجـر على الفئات التي يتقاضى فيها المؤمن عليه أجـراً من صاحب العمل ."]
[null,null,null,null,"إقـــــــرار"]
[null,"اسـم المنشأة :                                                ",{"$f":"'بيانات المنشأة'!B9","v":"AliaTeck"},null,null," رقمها التأميني : ",{"$f":"'بيانات المنشأة'!B4","v":12345678}]
[null,"العنـــــــــوان :     ",{"$f":"'بيانات المنشأة'!B10","v":"العنوان"}]
[]
["1ـ"," أقر أنا الموقِّع على هذا النموذج بالالتزام بعرض المؤمن عليه على اللجنة الطبية المختصة بالهيئة المعنية بالتأمين  الصحي  أو الجهة الطبية المختصة لإجراء الفحص الطبي الأولي وإثبات حالته الصحية  وقت توقيع الكشف الطبى  مع الالتزام بموافاة  الهيئة بتقرير اللياقة الطبية الصادر من الجهة الطبية المختصة عن حالته الصحية خلال أسبوعين على الأكثر من تاريخ التحاقه بالعمل تطبيقاًلأحكام قانون العمل ."]
[null,null,null,null,null,null,"توقيع صاحب العمل  / المدير المسئول"]
[null,null,null,null,null,null,"(                                              )"]
[]
[]
["2ــ"," أقر أنا :","سيد ",null,null,"العامل بالمنشأة عالية بأن أثبت حالتي الصحية أمام "]
[null,"اللجنة الطبية المختصة بالهيئة المعنية بالتأمين الصحي أو الجهة الطبية المختصة وموافاة  الهيئة بالتقرير الطبي عن حالتي الصحية خلال أسبوعين من تاريخ التحاقي بالعمل وفي حالة عـــدم قيامي بذلك فـــإن الهيئة القومية للتأمين الاجتماعي ليس عليها أدنــى التزام قانونـــــي بعرضى على اللجنة الطبية إثبات العجز أو صرف أية مستحقات تأمينية تترتب على العجز أياً كان نوعه السابق أو المعاصر لتاريخ الالتحاق بالعمل."]
[]
[null,null,null,null,null,null,"   توقيع المؤمن عليه "]
[null,null,null,null,null,null," (                                                 )"]

{"sheet":"تعليمات","index":5,"n_rows":29,"n_cols":1,"rows_kept":29,"cut":false,"hidden":false,"merged":[[28,0,29,0]]}
[]
["Windows is blocking the file because it was downloaded from the internet. Fix it in 3 steps:"]
[]
["Step 1 — Unblock the file:"]
[]
["1. Close Excel completely"]
["2. Go to C:\\Users\\sheri\\Downloads\\"]
["3. Right-click s1_macro.xlsm"]
["4. Click Properties"]
["5. At the bottom check Unblock"]
["6. Click OK"]
[]
["Step 2 — Open the file:"]
[]
["1. Open the file again in Excel"]
["2. Click Enable Macros when prompted"]
[]
["Step 3 — Move to a trusted location (permanent fix):"]
[]
["1. Move the file to a folder like Documents or your Desktop"]
["2. In Excel go to File → Options → Trust Center → Trust Center Settings"]
["3. Click Trusted Locations → Add new location"]
["4. Browse to your folder → click OK"]
[]
["After unblocking in Properties the security warning will not appear again for that file."]
[]
["https://support.microsoft.com/en-us/office/enable-or-disable-macros-in-microsoft-365-files-12b036fd-d140-4e74-b45e-16fed1a7e5c6"]
[]
["جارى تحديث الملف لمعالجة أي مشاكل قد تظهر. يمكتك الحصول على النسخة المحدثة من هنا"]